bitfinex-derivatives/quotes_ETHF0:USTF0_20260214
["timestamp","ask_amount","ask_price","bid_price","bid_amount"]
[1771105299325,1.11277102,2083.1,2082.4,1.16517431]
[1771105305729,0.00466058,2083.1,2082.4,1.16517431]
[1771105306430,0.00466058,2083.1,2082.6,1.10751139]
[1771105310130,1.1220998,2083.4,2082.6,1.10751139]
[1771105311334,1.12586996,2083.4,2082.6,1.10751139]
[1771105320934,1.12586996,2083.4,2082.1,1.10751139]
[1771105321637,1.1220998,2083.2,2082.1,1.10751139]
[1771105323549,1.1220998,2083.2,2082.3,1.10751139]
[1771105323947,1.1220998,2083.2,2081.9,1.10751139]
[1771105325348,1.1220998,2082.7,2081.7,1.34783139]
[1771105325752,1.1220998,2082.7,2081.7,1.10751139]
[1771105326752,1.1220998,2082.7,2081.5,1.10751139]
[1771105338768,1.1220998,2082.7,2081.7,1.10609396]
[1771105339662,1.11340135,2083.0,2081.9,1.10609396]
[1771105339865,1.11340135,2083.0,2082.1,1.10609396]
[1771105340468,1.11340135,2083.3,2082.1,1.10609396]
[1771105342264,1.11340135,2083.3,2082.3,1.10609396]
[1771105343569,0.00377016,2083.4,2082.3,1.10609396]
[1771105344068,1.11717151,2083.4,2082.3,1.10609396]
[1771105346560,1.11717151,2083.4,2082.5,1.10609396]
[1771105347269,1.11717151,2083.4,2082.7,1.10609396]
[1771105347468,1.11717151,2083.4,2082.7,1.11220368]
[1771105347669,0.00377016,2083.4,2082.7,1.11220368]
[1771105349366,1.11717151,2083.4,2082.7,1.11220368]
[1771105356570,0.00377016,2083.4,2082.8,0.24019]
[1771105356774,0.00377016,2083.4,2082.9,1.10609396]
[1771105362883,1.07583991,2083.8,2082.9,1.10609396]
[1771105363781,1.07950768,2083.8,2082.9,1.10609396]
[1771105363985,1.07950768,2083.8,2083.1,1.08536716]
[1771105365382,0.00366777,2083.8,2083.1,1.08536716]
[1771105365583,1.07950768,2083.8,2083.1,1.08536716]
[1771105366278,1.07583991,2083.9,2083.1,1.08536716]
[1771105367277,1.07963869,2083.9,2083.1,1.08536716]
[1771105369888,0.00379878,2083.9,2083.3,1.08536716]
[1771105371693,0.00379878,2083.9,2083.5,1.08536716]
[1771105371897,1.07583991,2084.2,2083.7,1.08536716]
[1771105372195,1.07583991,2084.7,2083.7,1.08536716]
[1771105372994,1.07947744,2084.7,2083.7,1.08536716]
[1771105373594,1.07583991,2084.5,2083.7,1.08536716]
[1771105374192,1.07583991,2084.4,2083.7,1.08536716]
[1771105378197,1.07583991,2084.6,2084.0,1.08536716]
[1771105378398,1.07583991,2084.3,2083.6,1.08536716]
[1771105378791,1.07947744,2084.7,2084.0,1.08536716]
[1771105379000,1.07583991,2084.4,2083.8,1.08536716]
[1771105379996,1.07583991,2084.4,2083.5,1.08536716]
[1771105380898,1.07583991,2084.4,2083.6,1.08536716]
[1771105381207,1.07583991,2084.4,2083.5,1.43363511]
[1771105381208,1.07583991,2084.4,2083.8,1.08536716]
[1771105381403,0.00363753,2084.7,2083.8,1.08536716]
[1771105381404,1.07583991,2084.6,2083.8,1.08536716]
[1771105382096,1.07583991,2084.6,2084.0,1.08536716]
[1771105382798,0.00363753,2084.7,2084.0,1.08536716]
[1771105383406,0.00363753,2084.7,2084.2,1.08536716]
[1771105383599,1.07947744,2084.7,2084.2,1.09056932]
[1771105388899,1.07947744,2084.7,2084.2,0.00520216]
[1771105389105,1.07947744,2084.7,2084.0,1.08536716]
[1771105391407,1.07947744,2084.7,2084.0,1.0908657]
[1771105398519,1.06821092,2084.5,2083.6,1.39654979]
[1771105399412,1.06821092,2084.5,2083.7,1.15645979]
[1771105399820,1.06821092,2084.5,2083.7,1.16086762]
[1771105400117,1.06821092,2084.5,2083.9,1.15645979]
[1771105400308,1.06821092,2084.5,2083.7,1.16086762]
[1771105400515,1.06821092,2084.1,2083.2,1.15645979]
[1771105401517,1.06821092,2084.1,2083.2,1.16206047]
[1771105402021,1.43363511,2084.0,2083.2,1.16206047]
[1771105402313,1.06821092,2083.9,2083.2,1.16206047]
[1771105406525,1.06821092,2084.0,2083.4,1.15645979]
[1771105406816,1.06821092,2084.0,2083.6,1.15645979]
[1771105407017,1.06821092,2084.5,2083.6,1.15645979]
[1771105407416,1.06821092,2084.3,2083.4,1.15645979]
[1771105407623,0.00363753,2084.7,2083.4,1.15645979]
[1771105407624,1.06821092,2084.1,2083.4,1.15645979]
[1771105408025,1.06821092,2084.1,2083.3,1.15645979]
[1771105413934,1.06821092,2084.6,2083.8,1.15645979]
[1771105423648,1.06821092,2084.6,2083.7,1.09758049]
[1771105425747,1.06821092,2084.6,2083.4,1.09758049]
[1771105431245,1.06821092,2084.6,2083.6,1.09758049]
[1771105433247,1.06821092,2084.6,2083.8,1.09758049]
[1771105440556,1.06821092,2084.6,2083.7,0.24008]
[1771105440854,1.06821092,2084.6,2083.3,3.983]
[1771105440855,1.06821092,2084.6,2083.5,1.09758049]
[1771105441952,1.06821092,2084.6,2083.5,1.33768049]
[1771105442155,1.06821092,2084.6,2083.6,1.09758049]
[1771105442556,1.06821092,2084.6,2083.8,1.09758049]
[1771105447962,1.06821092,2084.6,2083.6,1.09758049]
[1771105450659,1.06821092,2084.6,2083.6,1.33767049]
[1771105474881,1.06821092,2084.6,2083.8,1.10045047]
[1771105475679,1.15540385,2084.7,2084.2,1.10045047]
[1771105475981,1.15540385,2084.7,2083.8,1.10045047]
[1771105477282,1.15176632,2084.5,2083.8,1.10045047]
[1771105478378,1.15176632,2084.5,2083.6,0.24009]
[1771105478379,1.15540385,2084.7,2084.3,1.10045047]
[1771105478577,1.15540385,2084.7,2083.9,1.34051047]
[1771105481080,1.16740332,2084.7,2084.3,1.09218873]
[1771105481282,1.16740332,2084.7,2083.9,1.33224873]
[1771105483087,0.00363753,2084.7,2084.1,1.06069567]
[1771105483285,1.07491562,2084.7,2084.1,1.06069567]
[1771105483485,1.07491562,2084.7,2084.0,1.43299418]
[1771105483687,1.07491562,2084.7,2084.0,1.06069567]
[1771105485787,1.07491562,2084.7,2084.1,1.06069567]
[1771105488193,0.00363753,2084.7,2084.3,1.06069567]
[1771105488681,1.07491562,2084.7,2084.3,1.06069567]
[1771105495800,1.07491562,2084.7,2083.9,1.30075567]
[1771105496692,1.07491562,2084.7,2083.9,1.06069567]
[1771105496997,1.07491562,2084.7,2083.7,1.06069567]
[1771105498392,1.07127809,2084.6,2083.7,1.06069567]
[1771105499796,1.07127809,2084.4,2083.6,1.06069567]
[1771105500498,1.07127809,2084.4,2083.7,1.06069567]
[1771105500900,1.07127809,2084.4,2083.9,1.06069567]
[1771105501697,1.07127809,2084.6,2084.1,1.06069567]
[1771105501904,0.00363753,2084.7,2084.1,1.06069567]
[1771105502091,0.00363753,2084.7,2083.8,0.24006]
[1771105502092,0.00363753,2084.7,2084.3,1.06069567]
[1771105502597,1.07127809,2085.0,2084.5,1.06069567]
[1771105503599,1.07641281,2085.0,2084.5,1.06069567]
[1771105503801,1.07641281,2085.0,2084.4,1.06069567]
[1771105505905,1.07641281,2085.0,2084.2,1.06069567]
[1771105506505,1.07641281,2085.0,2084.0,2.49368985]
[1771105506804,1.07641281,2085.0,2084.0,1.06069567]
[1771105508605,1.07127809,2084.7,2083.8,1.30075567]
[1771105510001,1.07127809,2084.9,2084.1,1.06069567]
[1771105510502,1.07127809,2084.9,2084.2,1.43299418]
[1771105510706,1.07127809,2084.9,2084.3,1.06069567]
[1771105511999,0.00513472,2085.0,2084.3,1.06069567]
[1771105512200,1.07641281,2085.0,2084.3,1.06069567]
[1771105512396,0.00513472,2085.0,2084.5,1.06069567]
[1771105512600,1.07641281,2085.0,2084.3,1.06069567]
[1771105515507,1.07641281,2085.0,2084.1,1.14687998]
[1771105518208,1.07641281,2085.0,2084.3,1.14687998]
[1771105520206,1.07641281,2085.0,2084.2,1.14687998]
[1771105520409,1.06123355,2084.9,2084.1,0.24004]
[1771105520813,1.06123355,2084.9,2084.1,1.38691998]
[1771105522515,1.06123355,2084.7,2083.9,1.14687998]
[1771105532223,1.06123355,2084.7,2083.7,1.14687998]
[1771105532521,1.06123355,2084.5,2083.7,1.14687998]
[1771105536028,1.06123355,2084.4,2083.4,1.14687998]
[1771105545032,1.06123355,2084.4,2083.3,1.14241813]
[1771105547531,1.06123355,2084.4,2083.2,1.14801881]
[1771105548032,1.15035933,2084.1,2083.2,1.14801881]
[1771105548435,1.15035933,2084.1,2083.0,1.14241813]
[1771105549637,1.15035933,2084.1,2083.0,1.14800339]
[1771105554737,1.15035933,2084.1,2083.0,0.00558526]
[1771105556745,2.58359385,2083.9,2083.0,0.00558526]
[1771105556940,1.15035933,2083.8,2083.0,0.00558526]
[1771105558244,1.15035933,2083.8,2083.0,1.14800339]
[1771105564448,5.41623452,2084.2,2083.0,1.14800339]
[1771105564449,1.15035933,2084.2,2083.0,1.14800339]
[1771105564753,1.15035933,2083.9,2083.0,1.14800339]
[1771105566054,1.15035933,2084.0,2083.0,1.14800339]
[1771105570859,1.15035933,2084.1,2083.2,1.14241813]
[1771105572856,3.984,2084.3,2083.4,1.06896553]
[1771105573157,1.06412205,2084.2,2083.4,1.06896553]
[1771105580863,1.06412205,2084.2,2083.6,1.06896553]
[1771105583364,1.06412205,2084.5,2083.6,1.06896553]
[1771105584055,1.06412205,2084.5,2083.8,1.06896553]
[1771105584254,5.04812205,2084.7,2083.8,1.06896553]
[1771105584464,3.984,2084.7,2083.8,1.06896553]
[1771105584658,1.06412205,2084.9,2084.0,1.06896553]
[1771105584854,1.06925677,2085.0,2084.0,1.06896553]
[1771105587362,1.06925677,2085.0,2084.2,1.06896553]
[1771105606175,1.06925677,2085.0,2084.4,1.12455101]
[1771105606475,0.00513472,2085.0,2084.4,1.12455101]
[1771105606871,0.00513472,2085.0,2084.6,1.12455101]
[1771105607073,0.00513472,2085.0,2084.6,1.12926888]
[1771105607977,1.16462103,2085.0,2084.6,1.12926888]
[1771105616176,1.16462103,2085.0,2084.6,0.00471787]
[1771105616979,1.16462103,2085.0,2084.6,1.12926888]
[1771105620179,0.00513472,2085.0,2084.6,1.12926888]
[1771105620480,1.15948631,2085.3,2084.7,1.12455101]
[1771105621579,1.16404808,2085.3,2084.7,1.12455101]
[1771105623581,1.16404808,2085.3,2084.6,1.12926888]
[1771105627481,0.00456177,2085.3,2084.7,1.12455101]
[1771105628685,1.16404808,2085.3,2084.7,1.12455101]
[1771105631383,5.14148631,2085.6,2084.7,1.12455101]
[1771105631580,1.15948631,2085.5,2084.9,1.12455101]
[1771105631779,1.15948631,2085.5,2084.8,1.36451101]
[1771105632491,1.16344591,2085.5,2084.8,1.36451101]
[1771105636783,0.0039596,2085.5,2084.8,1.36451101]
[1771105636991,0.0039596,2085.5,2085.0,1.17198748]
[1771105637696,1.14581698,2085.5,2085.0,1.17198748]
[1771105638091,0.0039596,2085.5,2085.0,1.17198748]
[1771105638694,1.14581698,2085.5,2085.0,1.17198748]
[1771105641402,0.0039596,2085.5,2085.0,1.17198748]
[1771105642903,1.14581698,2085.5,2085.0,1.17198748]
[1771105646100,1.14581698,2085.5,2084.8,0.23996]
[1771105646101,1.14581698,2085.5,2084.9,1.17198748]
[1771105646300,1.14581698,2085.5,2084.8,1.41194748]
[1771105647602,0.0039596,2085.5,2084.8,1.41194748]
[1771105647811,1.14581698,2085.5,2085.0,1.17198748]
[1771105648107,1.14581698,2085.5,2084.8,1.41194748]
[1771105652412,1.14581698,2085.5,2085.0,1.17198748]
[1771105657512,0.0039596,2085.5,2085.0,1.17198748]
[1771105659116,1.14581698,2085.5,2085.0,1.17198748]
[1771105660318,1.14581698,2085.5,2084.8,0.23996]
[1771105660518,1.14581698,2085.5,2084.8,1.37397135]
[1771105660719,1.14581698,2085.5,2084.6,0.00471787]
[1771105661012,1.14581698,2085.5,2084.6,1.13872922]
[1771105690542,0.0039596,2085.5,2084.6,1.13872922]
[1771105691040,1.11965543,2085.5,2084.6,1.13872922]
[1771105699842,1.11965543,2085.5,2084.8,1.09596258]
[1771105710557,0.0039596,2085.5,2085.0,1.09596258]
[1771105712157,1.07976545,2085.5,2085.0,1.09596258]
[1771105714763,1.07976545,2085.5,2084.9,0.23995]
[1771105714969,1.07976545,2085.5,2084.9,1.33591258]
[1771105725375,0.0039596,2085.5,2084.9,1.33591258]
[1771105726376,1.1076086,2085.5,2084.9,1.33591258]
[1771105727272,1.1076086,2085.5,2084.9,1.09596258]
[1771105727473,1.1076086,2085.5,2084.6,5.41736531]
[1771105727675,1.1076086,2085.5,2084.7,1.06536544]
[1771105728179,1.103649,2085.4,2084.7,1.06536544]
[1771105728374,1.103649,2085.4,2084.6,0.00471787]
[1771105729579,1.43164744,2085.3,2084.6,0.00471787]
[1771105729774,1.103649,2085.2,2084.6,0.00471787]
[1771105730976,1.103649,2085.2,2084.6,1.07008331]
[1771105731473,1.1076086,2085.5,2084.9,1.43164744]
[1771105732273,1.1076086,2085.5,2085.0,1.06536544]
[1771105732867,1.1076086,2085.5,2084.9,2.49701288]
[1771105733078,1.1076086,2085.5,2084.9,1.06536544]
[1771105733275,1.1076086,2085.5,2084.7,1.06536544]
[1771105733777,1.103649,2085.4,2084.7,1.06536544]
[1771105733979,1.103649,2085.4,2084.6,0.00471787]
[1771105734179,1.103649,2085.4,2084.6,1.07008331]
[1771105734779,1.103649,2085.4,2084.6,0.00471787]
[1771105738581,1.103649,2085.4,2084.8,1.06536544]
[1771105742884,1.43560704,2085.5,2084.8,1.06536544]
[1771105742885,2.53529644,2085.3,2084.8,1.06536544]
[1771105743080,2.53529644,2085.3,2084.6,0.00471787]
[1771105743386,2.53529644,2085.3,2084.7,0.9000093]
[1771105743989,1.103649,2085.2,2084.7,0.9000093]
[1771105745286,1.103649,2085.2,2084.6,0.00471787]
[1771105750197,1.103649,2085.0,2084.3,0.88953232]
[1771105751298,1.103649,2085.0,2084.3,0.89380235]
[1771105753295,1.103649,2085.0,2084.3,0.00427003]
[1771105754098,1.103649,2085.0,2084.3,0.89941139]
[1771105754606,1.103649,2085.0,2084.3,0.00427003]
[1771105763209,1.09952403,2084.8,2084.3,0.00427003]
[1771105763605,1.09952403,2084.8,2084.0,0.83033419]
[1771105764508,1.09952403,2084.8,2084.0,0.83533858]
[1771105776013,1.09952403,2084.3,2083.4,0.24012]
[1771105776209,1.43164744,2083.9,2082.9,0.24017]
[1771105776915,1.14330545,2083.8,2082.9,0.24017]
[1771105777220,1.14878369,2083.8,2082.9,0.24463264]
[1771105778219,1.14878369,2083.8,2083.0,1.43164744]
[1771105779124,1.14878369,2083.8,2083.1,0.00126437]
[1771105784326,1.14818288,2083.8,2083.1,0.00126437]
[1771105788226,1.14818288,2083.8,2083.0,0.09934519]
[1771105788436,1.14818288,2083.8,2082.9,0.34397783]
[1771105791133,1.14818288,2083.8,2083.0,0.10247159]
[1771105792935,1.14818288,2083.8,2082.9,0.24463264]
[1771105792936,1.14818288,2083.8,2083.2,0.09304191]
[1771105795138,1.14270464,2083.9,2083.2,0.09304191]
[1771105796139,1.14672501,2083.9,2083.2,0.09304191]
[1771105804646,1.14672501,2083.9,2083.3,0.24013]
[1771105804848,1.14672501,2083.9,2083.4,1.09299109]
[1771105816757,1.14672501,2083.9,2083.3,0.24013]
[1771105818956,1.14672501,2083.9,2083.2,1.14628531]
[1771105818957,1.14672501,2083.9,2082.9,1.15074795]
[1771105819164,1.14672501,2083.9,2082.9,5.13374795]
[1771105820064,1.14672501,2083.9,2083.0,1.14628531]
[1771105823862,1.14672501,2083.9,2082.9,3.98746264]
[1771105824158,1.14672501,2083.9,2082.9,0.00446264]
[1771105824557,1.09233256,2083.8,2082.8,0.24019]
[1771105825157,1.09233256,2083.8,2082.5,3.983]
[1771105825558,1.09233256,2083.6,2082.5,3.98691695]
[1771105825767,1.09233256,2083.6,2082.5,5.13320226]
[1771105827967,1.09233256,2083.6,2082.5,3.98691695]
[1771105828467,1.09233256,2083.6,2082.5,5.13320226]
[1771105828766,1.09233256,2083.5,2082.5,0.00391695]
[1771105829067,5.07533256,2083.5,2082.5,0.00391695]
[1771105829266,1.09233256,2083.4,2082.5,0.00391695]
[1771105830564,1.09233256,2083.4,2082.2,1.14628531]
[1771105830866,1.09233256,2083.2,2082.0,5.12928531]
[1771105831261,1.09233256,2083.2,2082.0,1.14628531]
[1771105831470,1.09233256,2083.2,2081.9,1.14628531]
[1771105831764,1.09233256,2083.2,2081.9,0.00611698]
[1771105831971,1.09233256,2083.2,2082.1,1.14628531]
[1771105834469,1.09233256,2083.2,2082.3,1.14628531]
[1771105838976,1.09233256,2083.2,2082.0,1.14628531]
[1771105839268,1.09233256,2083.2,2082.2,1.14628531]
[1771105842878,1.09233256,2083.2,2082.4,1.10640557]
[1771105849777,1.09233256,2083.2,2082.6,1.10640557]
[1771105852678,1.09233256,2083.2,2082.4,1.10640557]
[1771105854283,1.10148029,2083.0,2082.2,1.10640557]
[1771105864486,1.10148029,2083.0,2082.1,0.24027]
[1771105864685,1.10148029,2082.6,2081.9,0.00611698]
[1771105864982,1.10148029,2082.4,2081.7,1.10640557]
[1771105865785,1.10148029,2082.4,2081.8,1.25569773]
[1771105865991,1.10683416,2082.4,2081.9,1.10640557]
[1771105866580,0.00535387,2082.4,2081.9,1.10640557]
[1771105867187,1.10683416,2082.4,2081.9,1.10640557]
[1771105867586,0.00535387,2082.4,2082.1,1.10640557]
[1771105867793,1.10148029,2082.5,2082.1,1.10640557]
[1771105868793,1.10630793,2082.5,2082.1,1.10640557]
[1771105869892,1.10148029,2083.1,2082.1,1.10640557]
[1771105870088,2.35717802,2083.1,2082.1,1.10640557]
[1771105870290,1.10148029,2083.0,2082.1,1.10640557]
[1771105870487,1.10148029,2082.8,2081.9,1.10640557]
[1771105870690,1.1064764,2082.8,2082.0,2.3621033]
[1771105870889,1.10148029,2082.6,2081.8,1.11110046]
[1771105872995,1.15028924,2082.8,2082.2,1.06963686]
[1771105873895,1.15028924,2082.8,2081.9,1.06963686]
[1771105880797,1.15028924,2082.8,2082.1,1.06963686]
[1771105911722,0.00499611,2082.8,2082.1,1.06963686]
[1771105911921,1.08543454,2082.8,2082.1,1.06963686]
[1771105920636,1.08043843,2083.0,2082.3,1.14996476]
[1771105921731,1.08452861,2083.0,2082.3,1.14996476]
[1771105928536,0.00409018,2083.0,2082.3,1.14996476]
[1771105929039,1.08452861,2083.0,2082.3,1.14996476]
[1771105930642,1.08452861,2083.0,2082.5,1.14996476]
[1771105936441,0.00409018,2083.0,2082.5,1.14996476]
[1771105937947,1.18139571,2083.0,2082.5,1.14996476]
[1771105938647,0.00409018,2083.0,2082.5,1.14996476]
[1771105939244,1.18139571,2083.0,2082.5,1.14996476]
[1771105940846,0.00409018,2083.0,2082.5,1.14996476]
[1771105941148,1.17730553,2083.2,2082.5,1.14996476]
[1771105941950,1.18241103,2083.2,2082.5,1.14996476]
[1771105942449,0.0051055,2083.2,2082.5,1.14996476]
[1771105942747,0.0051055,2083.2,2082.7,1.11219141]
[1771105944648,1.18241103,2083.2,2082.7,1.11219141]
[1771105950654,1.18241103,2083.2,2082.6,0.24021]
[1771105950952,1.18241103,2083.2,2082.6,1.35240141]
[1771105958957,1.17730553,2083.5,2082.6,1.35240141]
[1771105959963,1.12703805,2083.7,2082.6,1.35240141]
[1771105960162,1.13187379,2083.7,2082.6,1.35240141]
[1771105960858,1.13187379,2083.7,2082.4,5.24020186]
[1771105960859,1.13187379,2083.7,2082.8,1.42620487]
[1771105961460,1.13187379,2083.7,2083.0,1.18601487]
[1771105964065,0.00483574,2083.7,2083.0,1.18601487]
[1771105964867,1.18826349,2083.7,2083.3,1.20662463]
[1771105965069,1.18826349,2083.7,2083.3,1.21272821]
[1771105965565,1.18342775,2084.3,2083.3,1.21272821]
[1771105965770,1.18342775,2084.3,2083.5,1.20662463]
[1771105965969,1.18342775,2084.1,2083.3,1.21272821]
[1771105966671,1.1872781,2084.1,2083.3,1.21272821]
[1771105972782,1.1872781,2084.1,2083.5,1.20662463]
[1771105984689,1.1872781,2084.1,2083.5,2.64043327]
[1771105984891,1.1872781,2084.1,2083.6,1.20662463]
[1771105986297,1.18342775,2084.3,2083.8,1.20662463]
[1771105987396,1.18768581,2084.3,2083.8,1.20662463]
[1771105989897,1.18342775,2084.4,2084.0,1.20662463]
[1771105990292,1.18342775,2084.4,2084.0,0.70662463]
[1771105990898,1.18958775,2084.4,2084.0,0.70662463]
[1771105993495,1.18958775,2084.4,2083.9,2.57033423]
[1771105997006,1.18958775,2084.4,2084.0,1.13652559]
[1771106000998,0.57407846,2084.5,2084.2,1.13652559]
[1771106001398,0.57407846,2084.5,2084.2,0.63732559]
[1771106001601,1.18545402,2084.8,2084.2,0.63732559]
[1771106002101,1.19018619,2084.8,2084.2,0.63732559]
[1771106003305,1.19018619,2084.8,2084.4,1.13652559]
[1771106006309,0.00473217,2084.8,2084.4,1.13652559]
[1771106008208,1.19018619,2084.8,2084.4,1.13652559]
[1771106008809,0.00473217,2084.8,2084.4,1.13652559]
[1771106009110,1.19018619,2084.8,2084.4,1.13652559]
[1771106009504,0.00473217,2084.8,2084.4,1.13652559]
[1771106009808,1.19018619,2084.8,2084.4,1.13652559]
[1771106011113,0.00473217,2084.8,2084.4,1.13652559]
[1771106014516,1.18545402,2085.0,2084.4,1.13652559]
[1771106015117,1.18545402,2085.3,2084.6,1.13652559]
[1771106015413,1.19139443,2085.3,2084.6,1.13652559]
[1771106017208,1.18545402,2084.9,2084.1,1.13652559]
[1771106019318,1.18545402,2084.9,2084.3,1.13652559]
[1771106019617,1.18545402,2085.1,2084.5,1.13652559]
[1771106020717,1.10688912,2085.2,2084.5,1.13652559]
[1771106026924,1.10688912,2085.2,2084.3,1.20255007]
[1771106031528,1.10688912,2085.2,2084.5,1.20255007]
[1771106036039,0.00594041,2085.3,2084.7,1.20255007]
[1771106036239,1.11502523,2085.3,2084.7,1.20255007]
[1771106039636,0.00594041,2085.3,2084.9,1.20255007]
[1771106039841,1.10908482,2085.6,2084.9,1.20622012]
[1771106040736,5.09108482,2085.8,2085.1,1.20255007]
[1771106040941,5.09470892,2085.8,2085.1,1.20255007]
[1771106041244,1.11270892,2085.8,2085.1,1.20255007]
[1771106046547,0.0036241,2085.8,2085.1,1.20255007]
[1771106046849,1.11270892,2085.8,2085.1,1.20255007]
[1771106049249,0.0036241,2085.8,2085.1,1.20255007]
[1771106049551,0.0036241,2085.8,2085.3,1.20255007]
[1771106051253,1.10908482,2086.6,2085.9,1.09707196]
[1771106051455,1.10908482,2086.6,2085.5,1.09707196]
[1771106051755,1.10908482,2086.4,2085.5,1.09707196]
[1771106051949,1.10908482,2086.4,2085.3,1.0963698]
[1771106052149,1.10908482,2086.2,2085.3,1.0963698]
[1771106052554,1.10908482,2086.0,2085.3,1.0963698]
[1771106053054,1.12885637,2085.9,2085.3,1.0963698]
[1771106054253,1.12885637,2086.3,2085.4,0.23989]
[1771106054451,1.12885637,2086.2,2085.5,1.06919655]
[1771106054648,1.12885637,2086.3,2085.5,1.06919655]
[1771106059153,1.12885637,2086.2,2085.5,1.06919655]
[1771106064569,1.12885637,2086.3,2085.7,0.97995356]
[1771106064861,1.12885637,2086.3,2085.6,0.23987]
[1771106065062,1.12885637,2086.3,2085.6,1.21295395]
[1771106065259,1.12885637,2086.1,2085.6,1.21295395]
[1771106065864,1.12885637,2086.0,2085.6,1.21295395]
[1771106066256,1.4687591,2086.0,2085.6,1.21295395]
[1771106069966,0.33990273,2085.9,2085.6,1.21295395]
[1771106070264,1.12885637,2086.3,2085.6,1.21295395]
[1771106088485,1.12885637,2086.3,2085.7,0.76949362]
[1771106090888,1.08870421,2086.4,2085.7,0.76949362]
[1771106091388,1.08870421,2086.4,2085.9,0.71029037]
[1771106092085,1.08870421,2086.4,2085.8,0.94521656]
[1771106095996,1.08870421,2086.4,2085.9,0.65575872]
[1771106097295,1.08357143,2086.7,2086.2,0.6389757]
[1771106098292,1.08815252,2086.7,2086.2,0.6389757]
[1771106101497,1.08815252,2086.7,2086.0,0.85814793]
[1771106101897,1.08357143,2086.5,2085.7,0.61395023]
[1771106102097,1.08357143,2086.5,2085.8,0.61395023]
[1771106104203,1.43058171,2086.4,2085.7,1.78196648]
[1771106104501,1.43058171,2086.4,2085.7,1.197]
[1771106104502,1.08357143,2086.3,2085.7,1.197]
[1771106105500,1.08357143,2086.3,2085.7,1.77863517]
[1771106107799,1.08357143,2086.3,2085.7,0.58163517]
[1771106113506,1.08357143,2086.3,2085.5,1.98346513]
[1771106114407,1.08357143,2086.3,2085.6,0.54357108]
[1771106121516,1.08357143,2086.3,2085.5,0.73158427]
[1771106121715,1.01764408,2086.1,2085.5,0.73158427]
[1771106127614,1.01764408,2086.1,2085.6,0.46139573]
[1771106128317,1.01764408,2086.1,2085.6,1.89197744]
[1771106128515,1.01764408,2086.1,2085.7,0.45932485]
[1771106130522,1.01764408,2086.1,2085.5,0.69303264]
[1771106130717,1.01764408,2086.1,2085.4,0.45315264]
[1771106134519,1.01764408,2085.9,2085.2,1.64040299]
[1771106134721,1.01764408,2085.9,2085.2,0.44340299]
[1771106135918,1.01764408,2085.9,2085.1,1.197]
[1771106136124,1.01764408,2085.9,2085.1,1.63523277]
[1771106138024,1.01764408,2085.7,2085.0,0.23993]
[1771106138219,1.01764408,2085.7,2085.0,0.64959881]
[1771106138423,1.01764408,2085.7,2085.1,0.40966881]
[1771106139420,1.01764408,2085.7,2085.0,0.64748778]
[1771106140528,1.01764408,2085.7,2085.2,0.32964407]
[1771106148938,1.01764408,2085.7,2085.1,0.28953644]
[1771106150235,0.96035006,2085.9,2085.1,0.28953644]
[1771106150440,0.96035006,2085.9,2085.3,0.28829802]
[1771106153334,0.96035006,2086.1,2085.3,0.28829802]
[1771106154744,0.96035006,2086.3,2085.5,0.30891753]
[1771106154946,0.96035006,2086.3,2085.6,0.30891753]
[1771106157249,0.96035006,2086.3,2085.7,0.31778778]
[1771106161945,0.96035006,2086.3,2085.2,0.32293003]
[1771106163546,0.96035006,2086.3,2085.4,0.32005391]
[1771106163943,0.96035006,2086.3,2085.3,0.55788786]
[1771106165147,0.96035006,2086.3,2085.6,0.32862792]
[1771106165348,0.96035006,2086.3,2085.5,0.23988]
[1771106165551,0.96035006,2086.3,2085.5,0.56905273]
[1771106168054,0.96035006,2086.3,2085.6,0.32104469]
[1771106169749,0.96035006,2086.3,2085.5,0.55950654]
[1771106173559,0.96035006,2086.3,2085.6,0.32013756]
[1771106180560,0.96035006,2086.3,2085.5,0.23988]
[1771106182267,0.96035006,2086.3,2085.3,0.33126152]
[1771106186165,0.91625836,2086.2,2085.1,1.54205701]
[1771106186567,0.91625836,2086.2,2085.1,1.197]
[1771106187068,0.91625836,2086.2,2085.0,0.62880271]
[1771106187267,0.91625836,2086.0,2085.0,0.62880271]
[1771106189074,0.91625836,2086.0,2085.1,0.4012146]
[1771106190970,0.91625836,2086.0,2085.3,0.3982567]
[1771106196480,0.91625836,2086.0,2085.2,0.62562659]
[1771106198582,0.91625836,2086.0,2085.2,0.23991]
[1771106198877,0.91625836,2086.0,2085.1,1.197]
[1771106200679,0.91625836,2086.0,2085.2,0.33522123]
[1771106210876,0.91514893,2085.4,2084.9,0.00367005]
[1771106215488,0.91514893,2085.4,2084.9,0.34295757]
[1771106219183,0.91514893,2085.4,2084.9,0.00367005]
[1771106219389,0.91514893,2085.4,2084.7,0.35600808]
[1771106219884,0.91514893,2085.4,2084.5,0.35496299]
[1771106220087,0.91514893,2085.3,2084.3,0.35496299]
[1771106220383,0.91514893,2085.3,2084.4,0.36220131]
[1771106220785,0.91514893,2085.3,2084.6,0.36220131]
[1771106220987,0.91514893,2085.3,2084.8,0.36116822]
[1771106222690,3.98,2085.8,2084.3,0.00414388]
[1771106222691,0.91514893,2085.6,2085.0,0.36791986]
[1771106224495,0.91514893,2086.1,2085.2,0.36616645]
[1771106226292,0.91514893,2086.1,2085.4,0.36441236]
[1771106230396,0.91514893,2086.1,2085.6,0.36459847]
[1771106230895,0.91514893,2086.1,2085.0,0.23993]
[1771106230896,0.91514893,2086.3,2085.8,0.36459847]
[1771106231195,0.91514893,2086.3,2085.8,0.3684226]
[1771106235497,0.91514893,2086.3,2085.8,0.00382413]
[1771106235897,0.91514893,2086.3,2085.8,0.36735819]
[1771106243703,0.91514893,2086.3,2085.8,0.00382413]
[1771106243909,0.91514893,2086.3,2085.5,1.197]
[1771106244109,0.91514893,2086.3,2085.5,1.5601331]
[1771106244312,0.91514893,2086.3,2085.6,0.36315005]
[1771106244812,0.91514893,2086.3,2085.6,0.36726569]
[1771106250707,0.91514893,2086.3,2085.5,1.197]
[1771106250913,0.91514893,2086.3,2085.5,1.06732124]
[1771106251714,0.91514893,2086.3,2085.5,1.07267279]
[1771106252817,0.91514893,2086.3,2085.6,0.37506963]
[1771106259523,0.91514893,2086.3,2085.5,0.37626272]
[1771106265528,0.91514893,2086.3,2085.5,0.00535155]
[1771106265729,0.83952902,2086.1,2085.5,0.00535155]
[1771106275835,0.83952902,2086.1,2085.1,0.43093307]
[1771106276230,0.83952902,2086.1,2085.4,0.91549171]
[1771106276435,0.83952902,2086.1,2085.5,0.6729508]
[1771106276735,0.83952902,2086.1,2085.5,0.1766508]
[1771106277036,0.83952902,2086.1,2085.5,0.18016858]
[1771106278234,0.83952902,2086.1,2085.5,0.00351778]
[1771106278733,0.83952902,2086.1,2085.0,10.22295995]
[1771106278932,0.83952902,2086.1,2085.0,0.18181043]
[1771106279741,0.83952902,2086.1,2085.0,0.1856916]
[1771106280934,0.83952902,2086.1,2085.0,0.00388117]
[1771106281137,0.83952902,2085.9,2085.0,0.00388117]
[1771106282027,0.83952902,2085.9,2084.7,0.17462298]
[1771106282234,0.83952902,2085.9,2084.9,0.17983523]